Cogmind - Beta 16 @@@ ROGUE MODE // 2026.01.12 @ 12:14:06 Player: monistgf Result: Destroyed by P-80 Master with Gamma Rifle Performance ------------- Evolutions (7) 3500 Regions Visited (25) 5000 Robots Destroyed (189) 945 Value Destroyed (6663) 6663 Prototype IDs (47) 940 Alien Tech Used (2) 400 Bonus (5340) 5340 TOTAL SCORE: 22788 Bonus ------- High Alert Combat Kills 111 Follower Combat Kills 1629 Network Hubs Disabled 200 Met Data Miner 300 Met Zhirov 300 Built Enhanced Grunts 300 Met R17 at Cetus 500 Met R17 at Research 2000 Cogmind --------- Core Integrity 0/1300 Matter 91/300 Energy 98/100 System Corruption 23% Temperature Cool (0) Movement Core (50) Location -3/Testing Parts ------- > --- POWER (2) -------- (None) > --- PROPULSION (6) --- (None) > --- UTILITY (10) ----- (None) > --- WEAPON (3) ------- (None) > --- INVENTORY (5) ---- (None) Peak State ------------ > --- POWER ------------ Fusion Reactor Light Antimatter Reactor > --- PROPULSION ------- Gravmag Array Gravmag Array Antigrav Array > --- UTILITY ---------- Medium Storage Unit Triangulator Enhanced Optical Array Advanced Transmission Jammer Advanced Reaction Control System Improved Phase Shifter Improved Hacking Suite Improved Hacking Suite Improved System Shield Advanced System Shield > --- WEAPON ----------- Linear Accelerator Lance Lance > --- INVENTORY -------- Light Antimatter Reactor Gravmag Array Gravmag Array Gyrokinetic Inverter Seismic Detector Improved Phase Shifter Transdimensional Reconstructor Long-range Missile Launcher [Rating: 129] Favorites ----------- Power Micro Nuclear Core Engine Ion Engine Power Core Micro Nuclear Core Reactor Light Antimatter Reactor Propulsion Combat Airjet Treads Light Treads Leg Carbon-fiber Leg Wheel Wheel Hover Unit Combat Airjet Flight Unit Improved Flight Unit Utility Improved Hacking Suite Device Seismic Detector Storage Medium Storage Unit Processor Enhanced Optical Array Hackware Improved Hacking Suite Protection Improved Light Armor Plating Weapon Lance Energy Gun Medium Laser Ballistic Gun Enhanced Autogun Ballistic Cannon Advanced Assault Cannon Launcher Improved Grenade Launcher Impact Weapon Powered Hammer Slashing Weapon Power Sword Piercing Weapon Lance Build | -11 -10 -10 -9 -9 -9 -8 -8 -7 -7 -7 -7 -6 -6 -5 -5 -5 -5 -5 -4 -4 -4 -4 -3 -3 -3 ------- Run | Yrd Mat Min Mat Min Exi Min Mat Fac Low Low Dat Pro Fac Fac Ext Cet Arc Hub Fac Upp Upp Zhi Pro Res Tes Slots Evolved 14 | . . . 2 . . . 2 2 . . . . 2 2 . . . . 2 . . . . 2 . Power 1 | . . . . . . . . . . . . . . . . . . . 1 . . . . . . Propulsion 4 | . . . . . . . 1 2 . . . . 1 . . . . . . . . . . . . Utility 8 | . . . 1 . . . 1 . . . . . 1 2 . . . . 1 . . . . 2 . Weapon 1 | . . . 1 . . . . . . . . . . . . . . . . . . . . . . Parts Attached 200 | . 11 . 2 . 1 1 23 10 1 . . 7 36 22 9 3 8 18 20 1 . 2 . 5 20 Power 24 | . 2 . . . . . 3 2 . . . . 3 2 1 . 1 . 4 . . 1 . 2 3 Engine 6 | . 2 . . . . . 2 1 . . . . . . . . . . 1 . . . . . . Core 9 | . . . . . . . 1 1 . . . . 3 2 1 . . . 1 . . . . . . Reactor 9 | . . . . . . . . . . . . . . . . . 1 . 2 . . 1 . 2 3 Propulsion 66 | . 5 . . . . . 6 4 . . . 3 10 7 3 2 1 10 7 . . . . 1 7 Treads 13 | . 2 . . . . . 6 4 . . . . 1 . . . . . . . . . . . . Leg 3 | . . . . . . . . . . . . 1 1 . . . . . . . . . . . 1 Wheel 3 | . 3 . . . . . . . . . . . . . . . . . . . . . . . . Hover 42 | . . . . . . . . . . . . . 5 7 3 2 1 10 7 . . . . 1 6 Flight 5 | . . . . . . . . . . . . 2 3 . . . . . . . . . . . . Utility 65 | . 2 . 1 . 1 . 5 1 1 . . 3 14 8 3 . 6 5 7 1 . 1 . 1 5 Device 24 | . 1 . 1 . . . 2 . . . . . 6 1 . . 3 1 5 1 . . . 1 2 Storage 6 | . 1 . . . 1 . . . . . . 1 1 1 . . . . 1 . . . . . . Processor 8 | . . . . . . . . 1 . . . . 2 3 . . . . . . . . . . 2 Hackware 8 | . . . . . . . . . . . . . 2 . . . 2 1 1 . . 1 . . 1 Protection 19 | . . . . . . . 3 . 1 . . 2 3 3 3 . 1 3 . . . . . . . Artifact . | . . . . . . . . . . . . . . . . . . . . . . . . . . Weapon 45 | . 2 . 1 . . 1 9 3 . . . 1 9 5 2 1 . 3 2 . . . . 1 5 Energy Gun 2 | . 1 . . . . . . . . . . . . . . . . . . . . . . . 1 Energy Cannon . | . . . . . . . . . . . . . . . . . . . . . . . . . . Ballistic Gun 11 | . 1 . 1 . . . 4 2 . . . . 1 . . . . . 1 . . . . . 1 Ballistic Cannon 8 | . . . . . . . 3 . . . . 1 . 1 1 . . . . . . . . 1 1 Launcher 8 | . . . . . . 1 1 . . . . . 2 . . . . 1 1 . . . . . 2 Special Weapon . | . . . . . . . . . . . . . . . . . . . . . . . . . . Impact Weapon 3 | . . . . . . . 1 1 . . . . 1 . . . . . . . . . . . . Slashing Weapon 8 | . . . . . . . . . . . . . 5 . 1 . . 2 . . . . . . . Piercing Weapon 5 | . . . . . . . . . . . . . . 4 . 1 . . . . . . . . . Special Melee Weapon . | . . . . . . . . . . . . . . . . . . . . . . . . . . Unidentified Prototypes 7 | . . . . . . . 2 . . . . . 1 . . . . . . . . 2 . . 2 Corrupted Parts 2 | . . . . . . . . . . . . . . . . . . 2 . . . . . . . System Corruption 20 | . . . . . . . . . . . . . . . . . . 20 . . . . . . . Parts Lost 97 | . 4 . . . . 3 8 . 1 . . 8 7 9 1 4 . 12 9 . . . . 1 30 Power 14 | . 2 . . . . 1 1 . . . . . 1 1 . . . . 2 . . . . . 6 Propulsion 40 | . 2 . . . . . 2 . . . . 6 2 3 1 3 . 8 4 . . . . . 9 Utility 26 | . . . . . . . 4 . 1 . . 1 3 4 . . . 4 1 . . . . 1 7 Weapon 17 | . . . . . . 2 1 . . . . 1 1 1 . 1 . . 2 . . . . . 8 Highest Loss Streak 14 | . 2 . . . . 3 3 . 1 . . 6 1 3 1 3 . 5 6 . . . . 1 14 To Critical Strikes 5 | . . . . . . . . . . . . . . . . 2 . . . . . . . . 3 Average Backups 10 | . 7 9 8 10 10 11 18 19 19 19 20 17 6 9 9 8 9 9 5 7 7 7 8 7 5 Power . | . . . . . . . . 1 1 1 1 . . . 1 1 1 . . . . . . . . Propulsion 2 | . 3 3 3 4 4 4 4 2 3 3 3 1 . 2 2 . . 1 1 4 4 3 3 3 3 Utility 4 | . . 3 2 3 3 4 5 9 9 10 11 10 3 3 3 4 5 4 1 2 2 2 3 1 . Weapon 3 | . 2 3 2 3 3 3 7 6 6 5 5 4 2 3 3 2 3 2 1 1 1 1 1 1 . Tool/Special . | . . . . . . . . . . . . . . . . . . . . . . . . . . Unused Backups 39 | . 1 . . . . . 10 3 . . . 8 1 6 . . 3 3 1 . . 1 . . 2 Power 7 | . 1 . . . . . 1 2 . . . 1 . . . . 1 1 . . . . . . . Propulsion 8 | . . . . . . . 3 . . . . . . 3 . . . . . . . 1 . . 1 Utility 17 | . . . . . . . 3 1 . . . 6 1 3 . . 1 1 1 . . . . . . Weapon 7 | . . . . . . . 3 . . . . 1 . . . . 1 1 . . . . . . 1 Tool/Special . | . . . . . . . . . . . . . . . . . . . . . . . . . . Average Slot Usage (%) 91 | . 91 100 99 100 100 94 95 99 100 100 84 88 91 97 94 92 92 91 86 84 84 84 84 84 56 Engine 2 | . 9 14 11 11 11 6 7 6 . . . . . . . . . . 1 . . . . . . Core 3 | . . . . . . . 1 . 7 7 7 7 5 5 5 5 . . 2 5 5 3 . . . Reactor 1 | . . . . . . . . . . . . . . . . . 4 4 3 5 5 6 10 9 6 Treads 10 | . 9 14 11 11 11 11 26 37 38 38 38 22 2 . . . . . . . . . . . . Wheel 1 | . 18 14 11 11 11 11 . . . . . . . . . . . . . . . . . . . Hover 14 | . . . . . . . . . . . . . 22 33 29 27 27 28 23 15 15 15 15 14 12 Flight 1 | . . . . . . . . . . . . 2 7 . . . . . . . . . . . . Device 9 | . 10 14 22 22 22 22 16 7 7 7 7 6 7 6 5 5 3 4 6 10 10 8 5 14 8 Storage 5 | . 14 14 11 11 11 11 9 7 7 7 7 5 2 5 5 5 5 4 2 5 5 5 5 4 2 Processor 7 | . . . . . . . . 6 7 7 7 7 8 12 17 17 13 11 10 10 10 10 10 7 5 Hackware 6 | . . . . . . . . . . . . . 5 5 5 5 9 16 19 15 15 16 21 19 12 Protection 4 | . . . . . . . 7 7 7 7 7 7 4 8 5 5 5 . 1 . . . . . . Energy Gun 1 | . 15 14 11 11 11 8 . . . . . . . . . . . . . . . . . . . Ballistic Gun 7 | . 12 14 21 22 22 22 15 17 22 23 8 18 . . . . . . . 5 5 5 5 . . Ballistic Cannon 1 | . . . . . . . 10 . . . . . . . . . . . . . . . . 3 . Slashing Weapon 3 | . . . . . . . . . . . . . 13 6 3 5 5 4 . . . . . . . Piercing Weapon 4 | . . . . . . . . . . . . . . 9 12 10 11 10 11 10 10 10 10 9 5 Peak Build Rating 129 | . 8 8 10 10 10 11 36 40 40 38 36 38 69 87 88 88 89 95 106 99 98 106 105 123 129 Average Rating 59 | . 6 8 9 10 10 9 33 38 38 36 28 34 55 80 86 85 86 86 96 97 98 99 100 115 82 On Entrance 53 | 6 6 8 8 10 10 10 7 35 40 36 36 36 21 68 87 88 81 88 93 99 98 98 100 100 123 Avg Prop Armor Cover (%) 12 | . 14 13 11 11 11 12 17 . . . . 6 14 . . . . . 12 . . . . . 11 Naked Turns 21 | . . . . . . . . . . . . . . . . . . . . . . . . . 21 Heaviest Build 69 | 14 49 49 51 51 51 51 69 66 62 61 61 64 34 42 52 50 48 45 42 42 42 48 46 59 59 Greatest Support 119 | 20 40 10 10 10 10 10 84 119 119 111 111 111 53 68 65 65 63 75 82 60 60 60 60 66 80 Greatest Overweight (x) 5 | . 4 4 5 5 5 5 4 . . . . 3 1 . . . . 3 . . . . . . 1 Average Overweight (x) . | . 2 4 5 5 5 4 . . . . . . . . . . . . . . . . . . . Largest Inventory Capacity 20 | . 20 20 20 20 20 20 20 20 20 20 20 20 10 10 10 10 10 10 10 10 10 10 10 10 10 Average Capacity 13 | . 19 20 20 20 20 20 20 20 20 20 20 17 7 10 10 10 10 9 7 10 10 10 10 10 8 Most Carried 20 | . 9 9 10 10 11 11 20 20 20 20 20 20 10 10 10 10 10 10 10 10 9 10 10 10 10 Average Carried 11 | . 7 9 8 10 10 11 18 19 19 19 20 17 6 9 9 8 9 9 6 9 9 9 10 9 6 Final Capacity 20 | 8 20 20 20 20 20 20 20 20 20 20 20 5 10 10 10 10 10 5 10 10 10 10 10 10 5 Final Carried 20 | 6 9 9 10 10 11 11 20 20 19 20 20 5 10 10 10 8 10 5 10 9 9 10 10 10 . Class Distribution -------------------- 26% | Mutant 15% | Hacker-Gladiator 13% | Scavenger-Tank 12% | Commander-Gladiator 7% | Gunner 7% | Tank 4% | Scavenger-Mutant 4% | Hacker-Mutant 4% | Scavenger-Gladiator Dominant Class ---------------- Mutant | -10/Materials Mutant | -10/Mines Gunner | -9/Materials Gunner | -9/Mines Gunner | -9/Exiles Gunner | -8/Mines Tank | -8/Materials Mutant | -7/Factory Scavenger-Tank | -7/Lower Caves Scavenger-Tank | -7/Lower Caves Scavenger-Mutant | -7/Data Miner Scavenger-Tank | -6/Proximity Caves Mutant | -6/Factory Mutant | -5/Factory Commander-Gladiator | -5/Extension Commander-Gladiator | -5/Cetus Commander-Gladiator | -5/Archives Commander-Gladiator | -5/Hub_04(d) Hacker-Gladiator | -4/Factory Hacker-Gladiator | -4/Upper Caves Hacker-Gladiator | -4/Upper Caves Hacker-Gladiator | -4/Zhirov Hacker-Gladiator | -3/Proximity Caves Hacker-Gladiator | -3/Research Mutant | -3/Testing Resources | -11 -10 -10 -9 -9 -9 -8 -8 -7 -7 -7 -7 -6 -6 -5 -5 -5 -5 -5 -4 -4 -4 -4 -3 -3 -3 ----------- Run | Yrd Mat Min Mat Min Exi Min Mat Fac Low Low Dat Pro Fac Fac Ext Cet Arc Hub Fac Upp Upp Zhi Pro Res Tes Matter Collected 5381 | 200 148 . 20 . 10 . 1210 255 144 253 . 191 781 431 292 208 172 250 405 24 . . . 170 217 Remotely . | . . . . . . . . . . . . . . . . . . . . . . . . . . Salvage Created 8705 | . 375 . . . . 168 1098 292 21 190 . 355 1041 669 1359 . 277 1422 941 . . . . 197 300 Parts 440 | . 24 . . . . 10 61 19 6 11 . 12 47 38 65 . 20 51 46 . . . . 9 21 Haulers Intercepted 13 | . . . . . . . 3 . . . . . 4 1 . . . 4 . . . . . 1 . Recyclers Shooed 4 | . . . . . . . 2 . . . . . . . . . . . 2 . . . . . . Parts Field Recycled . | . . . . . . . . . . . . . . . . . . . . . . . . . . Retrieved Matter . | . . . . . . . . . . . . . . . . . . . . . . . . . . Parts Self-Destructed 34 | . . . . . . . . . 4 11 . 8 . . . . . . . 11 . . . . . Prevented 1 | . . . . . . . . . . . . . . . . . . . . 1 . . . . . Parts Restored . | . . . . . . . . . . . . . . . . . . . . . . . . . . Kills | -11 -10 -10 -9 -9 -9 -8 -8 -7 -7 -7 -7 -6 -6 -5 -5 -5 -5 -5 -4 -4 -4 -4 -3 -3 -3 ------- Run | Yrd Mat Min Mat Min Exi Min Mat Fac Low Low Dat Pro Fac Fac Ext Cet Arc Hub Fac Upp Upp Zhi Pro Res Tes Combat Hostiles Destroyed 117 | . 8 . . . . 3 23 9 4 4 . 9 11 10 12 1 . 8 6 . . . . 3 6 Melee 40 | . . . . . . . . . . . . . 7 6 12 . . 8 4 . . . . 3 . Guns 25 | . 7 . . . . . 7 3 . 4 . 4 . . . . . . . . . . . . . Cannons 15 | . . . . . . . 10 . . . . . . . . . . . . . . . . . 5 AOE 37 | . 1 . . . . 3 6 6 4 . . 5 4 4 . 1 . . 2 . . . . . 1 Classes Destroyed 14 | . 2 . . . . 2 5 2 . . . 1 1 . . . . 1 . . . . . . . Worker 11 | . . . . . . . . . . . . . 2 . . . . 6 3 . . . . . . Builder 7 | . . . . . . . 1 . . . . . 1 . 2 . . 1 2 . . . . . . Tunneler 7 | . 1 . . . . 1 1 1 . . . . . . . . . . 3 . . . . . . Hauler 13 | . . . . . . . 3 . . . . . 4 1 . . . 4 . . . . . 1 . Recycler 18 | . . . . . . 1 3 2 . . . . 2 1 3 . . 3 3 . . . . . . Operator 9 | . . . . . . . . 1 . . . . . . . . 8 . . . . . . . . Watcher 7 | . . . . . . . 1 . . . . . . 1 2 1 . 1 1 . . . . . . Swarmer 30 | . . . . . . . 6 7 4 . . . 6 4 . . . . . . . . . 3 . Cutter 3 | . . . . . . . . . . . . . . . . . . 3 . . . . . . . Grunt 37 | . 8 . . . . 2 11 . . 3 . 6 1 . 4 . . 1 1 . . . . . . Duelist 3 | . . . . . . 1 . . . 1 . . . . . . . 1 . . . . . . . Sentry 17 | . . . . . . . 6 1 . . . 1 1 2 5 . . . 1 . . . . . . Hunter 6 | . . . . . . . . . . . . 2 . 1 1 . . 1 . . . . . . 1 Programmer 20 | . . . . . . . . 1 . . . . 3 3 2 . . 2 4 . . . . . 5 Cetus Guard 1 | . . . . . . . . . . . . . . . . 1 . . . . . . . . . Best Kill Streak 6 | . 3 . . . . 5 5 5 4 4 . 6 4 4 3 2 3 5 4 . . . . 3 4 Combat Bots Only 6 | . 3 . . . . 3 4 4 4 4 . 6 4 4 3 1 . 4 3 . . . . 3 4 Max Kills in Single Turn 4 | . 1 . . . . 3 4 2 2 1 . 2 2 2 1 1 1 1 2 . . . . 1 1 Gunslinging . | . . . . . . . . . . . . . . . . . . . . . . . . . . Exploded 3 | . 1 . . . . 1 3 2 2 . . 2 2 2 . 1 . . 2 . . . . . 1 Melee 1 | . . . . . . . . . . . . . 1 1 1 . . 1 1 . . . . 1 . Uniques/NPCs Destroyed . | . . . . . . . . . . . . . . . . . . . . . . . . . . Combat | -11 -10 -10 -9 -9 -9 -8 -8 -7 -7 -7 -7 -6 -6 -5 -5 -5 -5 -5 -4 -4 -4 -4 -3 -3 -3 -------- Run | Yrd Mat Min Mat Min Exi Min Mat Fac Low Low Dat Pro Fac Fac Ext Cet Arc Hub Fac Upp Upp Zhi Pro Res Tes Hostile Shots Fired 1445 | . 43 . . . . 13 152 43 33 20 . 122 178 107 66 28 1 111 87 2 8 . . 31 400 Missed 507 | . 8 . . . . 2 39 21 10 3 . 41 76 34 21 12 . 33 37 2 5 . . 14 149 Hits 938 | . 35 . . . . 11 113 22 23 17 . 81 102 73 45 16 1 78 50 . 3 . . 17 251 Melee 19 | . . . . . . . . . . 3 . . . . . . . 16 . . . . . . . Projectile 919 | . 35 . . . . 11 113 22 23 14 . 81 102 73 45 16 1 62 50 . 3 . . 17 251 Critical Strikes 58 | . 1 . . . . 1 5 1 1 2 . 1 2 2 5 4 . 11 6 . . . . 1 15 Actively Blocked 2 | . . . . . . . . . . . . . 1 1 . . . . . . . . . . . Part Disruptions 1 | . . . . . . . . . . . . . . . . . . . . . . . . . 1 Damage Taken 16356 | . 560 . . . . 165 1906 262 426 320 . 1001 1253 1546 707 451 28 1503 1054 . 44 . . 349 4781 Core 2835 | . 113 . . . . 42 182 49 . 96 . 139 214 228 154 52 . 204 146 . . . . 49 1167 Absorbed by Shields 333 | . . . . . . . . . . . . . . . 287 41 . . . . . . . . 5 Redirected to Shielding 132 | . . . . . . . . . . . . . 81 51 . . . . . . . . . . . Core Remaining (%) 70 | 100 . 54 . . . 89 66 . . . . 59 74 . . . . 36 . . . . 87 . . Volleys Fired 240 | . 38 . . . . 5 67 15 4 10 . 23 9 7 12 11 . 1 5 . . . . . 33 Largest 3 | . 2 . . . . 1 3 3 1 3 . 3 1 1 1 1 . 1 1 . . . . . 2 Hottest 105 | . 70 . . . . 30 103 75 36 75 . 86 40 44 47 39 . 46 43 . . . . . 105 Shots Fired 467 | . 76 . . . . 5 187 37 4 30 . 52 9 7 12 10 . 1 5 1 . . . . 31 Gun 273 | . 76 . . . . . 82 33 . 30 . 38 4 . . . . . . 1 . . . . 9 Cannon 136 | . . . . . . . 98 . . . . 8 3 2 12 . . . . . . . . . 13 Launcher 58 | . . . . . . 5 7 4 4 . . 6 2 5 . 10 . 1 5 . . . . . 9 Special . | . . . . . . . . . . . . . . . . . . . . . . . . . . Kinetic 366 | . 38 . . . . . 180 33 . 30 . 46 7 2 12 . . . . 1 . . . . 17 Thermal 25 | . 25 . . . . . . . . . . . . . . . . . . . . . . . . Explosive 54 | . . . . . . 5 7 4 4 . . 6 2 5 . 10 . 1 5 . . . . . 5 Electromagnetic 22 | . 13 . . . . . . . . . . . . . . . . . . . . . . . 9 Robot Hit Streak 23 | . 20 . . . . 7 20 14 5 4 . 16 23 1 . 5 . . 4 . . . . . 10 Robot Miss Streak 5 | . 4 . . . . . 4 2 2 2 . 2 2 4 . 1 . . 2 . . . . . 5 Penetration Max . | . . . . . . . . . . . . . . . . . . . . . . . . . . Secondary Targets 2 | . . . . . . . . . . 2 . . . . . . . . . . . . . . . Max Gunslinging Chain 1 | . . . . . . . . . . 1 . . . . . . . . . . . . . . . Shots Hit Robots 531 | . 55 . . . . 3 117 24 1 20 . 35 44 37 47 7 14 52 39 . . . . 7 29 Core Hits 318 | . 20 . . . . 8 57 13 7 9 . 24 24 15 21 29 8 27 28 . . . . 5 23 Critical Kills . | . . . . . . . . . . . . . . . . . . . . . . . . . . Critical Parts Destroyed 1 | . . . . . . . 1 . . . . . . . . . . . . . . . . . . Critical Strikes 27 | . . . . . . . 2 . . . . . 8 7 2 . . 6 1 . . . . . 1 Destroy 1 | . . . . . . . 1 . . . . . . . . . . . . . . . . . . Blast 2 | . . . . . . . 1 . . . . . . . . . . . . . . . . . 1 Sever 10 | . . . . . . . . . . . . . 8 1 . . . 1 . . . . . . . Impale 14 | . . . . . . . . . . . . . . 6 2 . . 5 1 . . . . . . Melee Attacks 460 | . . . . . . . 1 6 . . . . 81 79 61 . 15 88 77 10 . . 1 18 23 Impact 10 | . . . . . . . 1 6 . . . . 2 1 . . . . . . . . . . . Slashing 122 | . . . . . . . . . . . . . 79 22 7 . 2 11 1 . . . . . . Piercing 328 | . . . . . . . . . . . . . . 56 54 . 13 77 76 10 . . 1 18 23 Sneak Attacks 70 | . . . . . . . . 2 . . . . 11 4 7 . 9 20 16 . . . . 1 . Combat Hostiles 2 | . . . . . . . . . . . . . 1 . 1 . . . . . . . . . . Follow-up Attacks 64 | . . . . . . . . . . . . . 9 13 15 . 1 15 9 . . . . 1 1 Damage Inflicted 22576 | . 633 . . . . 418 3040 1188 401 361 . 1383 2374 1948 2317 974 864 2815 2294 . . . . 352 1214 Guns 2931 | . 566 . . . . . 980 356 . 361 . 509 84 . . . . . . . . . . . 75 Cannons 2067 | . . . . . . . 1461 . . . . . . . . . . . . . . . . . 606 Explosions 5395 | . 67 . . . . 418 577 731 401 . . 874 276 388 . 974 . 83 307 . . . . . 299 Melee 12009 | . . . . . . . . 101 . . . . 2014 1560 2174 . 864 2732 1987 . . . . 352 225 Ramming 174 | . . . . . . . 22 . . . . . . . 143 . . . . . . . . . 9 Kinetic 4614 | . 203 . . . . . 2441 356 . 361 . 509 84 . . . . . . . . . . . 660 Thermal 306 | . 306 . . . . . . . . . . . . . . . . . . . . . . . . Explosive 5005 | . . . . . . 418 380 731 401 . . 874 276 388 . 974 . . 307 . . . . . 256 Electromagnetic 468 | . 124 . . . . . 197 . . . . . . . . . . 83 . . . . . . 64 Impact 101 | . . . . . . . . 101 . . . . . . . . . . . . . . . . . Slashing 2851 | . . . . . . . . . . . . . 2014 269 184 . 37 324 23 . . . . . . Piercing 9057 | . . . . . . . . . . . . . . 1291 1990 . 827 2408 1964 . . . . 352 225 Highest Corruption 23 | . . . . . . . . 1 1 1 1 1 2 12 13 13 13 21 4 4 . . . . 23 Average Corruption 5 | . . . . . . . . 1 1 1 1 1 1 8 12 13 7 17 3 2 . . . . 11 Corruption Purged 19 | . . . . . . . . . . . . . 2 . . . 13 . . 4 . . . . . Corruption Blocked . | . . . . . . . . . . . . . . . . . . . . . . . . . . Effects 143 | . . . . . . . . . 5 8 1 6 11 13 40 19 11 1 13 1 . . . . 14 Message Errors 30 | . . . . . . . . . 2 1 . 1 5 1 10 2 1 . 5 . . . . . 2 Matter Fused 34 | . . . . . . . . . 1 3 1 2 . 4 10 7 2 1 2 . . . . . 1 Heat Flow Errors 21 | . . . . . . . . . 1 1 . 1 2 4 6 2 1 . . . . . . . 3 Energy Discharges 16 | . . . . . . . . . . . . 1 1 1 6 . 3 . 3 . . . . . 1 Parts Rejected 2 | . . . . . . . . . . . . . . . . . 1 . . . . . . . 1 Parts Fused 1 | . . . . . . . . . . . . . . . . 1 . . . . . . . . . Data Loss (minor) 14 | . . . . . . . . . . . . . 2 2 4 3 1 . 2 . . . . . . Data Loss (major) 8 | . . . . . . . . . 1 1 . . . . 2 1 2 . 1 . . . . . . Misfires 3 | . . . . . . . . . . 1 . 1 . . . . . . . 1 . . . . . Alerts 4 | . . . . . . . . . . . . . 1 1 1 1 . . . . . . . . . Misdirections 3 | . . . . . . . . . . . . . . . 1 1 . . . . . . . . 1 Weapon Failures 7 | . . . . . . . . . . 1 . . . . . 1 . . . . . . . . 5 Overload Shots . | . . . . . . . . . . . . . . . . . . . . . . . . . . Overflow Damage 1692 | . 6 . . . . . 73 100 47 . . . 270 152 269 . 85 258 346 . . . . 19 67 Projectiles 17 | . . . . . . . 17 . . . . . . . . . . . . . . . . . . Explosions 305 | . 6 . . . . . 56 69 47 . . . 50 10 . . . . . . . . . . 67 Melee 1370 | . . . . . . . . 31 . . . . 220 142 269 . 85 258 346 . . . . 19 . Knockbacks 26 | . . . . . . . 19 . . . . . . . . . . . . . . . . . 7 Impact . | . . . . . . . . . . . . . . . . . . . . . . . . . . Kinetic 23 | . . . . . . . 16 . . . . . . . . . . . . . . . . . 7 Secondary 3 | . . . . . . . 3 . . . . . . . . . . . . . . . . . . Self-Inflicted Damage 616 | . 46 . . . . . 73 . 66 . . 26 25 71 71 . . 91 . . . . . . 147 Shots 18 | . 1 . . . . . 2 . 2 . . 1 1 3 . . . 1 . . . . . . 7 Rammed 11 | . . . . . . . 4 . . . . . 1 . 3 . . . . . . . . . 3 Targets Rammed 12 | . . . . . . . 5 . . . . . 1 . 3 . . . . . . . . . 3 Kicked . | . . . . . . . . . . . . . . . . . . . . . . . . . . Crushed 1 | . . . . . . . 1 . . . . . . . . . . . . . . . . . . Highest Temperature 333 | . 126 . . . . 9 333 95 117 238 . 320 249 240 253 251 204 167 214 . . . . . 250 Average Temperature 73 | . 35 . . . . 9 95 39 60 130 . 102 129 90 87 68 94 53 59 . . . . . 112 Received Heat Transfer 2784 | . 273 . . . . 117 954 12 24 144 . 534 30 45 170 40 . 297 120 . . . . . 24 Effects 9 | . . . . . . . 3 . . 2 . 1 . 3 . . . . . . . . . . . Energy Bleed 3 | . . . . . . . . . . 2 . 1 . . . . . . . . . . . . . Interference 6 | . . . . . . . 3 . . . . . . 3 . . . . . . . . . . . Siege Activations . | . . . . . . . . . . . . . . . . . . . . . . . . . . Martial Activations . | . . . . . . . . . . . . . . . . . . . . . . . . . . Shielding Activations . | . . . . . . . . . . . . . . . . . . . . . . . . . . Robots Disrupted . | . . . . . . . . . . . . . . . . . . . . . . . . . . Combat Hostiles . | . . . . . . . . . . . . . . . . . . . . . . . . . . Robots Corrupted . | . . . . . . . . . . . . . . . . . . . . . . . . . . Combat Hostiles . | . . . . . . . . . . . . . . . . . . . . . . . . . . Parts Fried 5 | . 1 . . . . . . 2 . . . . . . 2 . . . . . . . . . . Impact Corruptions 4 | . . . . . . . 1 2 . . . . . . 1 . . . . . . . . . . Robots Melted . | . . . . . . . . . . . . . . . . . . . . . . . . . . Combat Hostiles . | . . . . . . . . . . . . . . . . . . . . . . . . . . Parts Melted 1 | . 1 . . . . . . . . . . . . . . . . . . . . . . . . Heat Transferred 803 | . 803 . . . . . . . . . . . . . . . . . . . . . . . . Parts Sabotaged . | . . . . . . . . . . . . . . . . . . . . . . . . . . Parts Stolen . | . . . . . . . . . . . . . . . . . . . . . . . . . . Parts Stripped . | . . . . . . . . . . . . . . . . . . . . . . . . . . Power Chain Reactions 1 | . 1 . . . . . . . . . . . . . . . . . . . . . . . . Alert | -11 -10 -10 -9 -9 -9 -8 -8 -7 -7 -7 -7 -6 -6 -5 -5 -5 -5 -5 -4 -4 -4 -4 -3 -3 -3 ------- Run | Yrd Mat Min Mat Min Exi Min Mat Fac Low Low Dat Pro Fac Fac Ext Cet Arc Hub Fac Upp Upp Zhi Pro Res Tes Maximum Alert Level 3 | . . . . . . . 1 . . . . . . . 2 2 1 3 1 . . . . 1 . Low Security (%) 69 | . 100 100 100 100 . 100 36 100 . . . . 100 100 31 . 93 37 41 . . . . 29 100 Level 1 22 | . . . . . . . 63 . . . . . . . 29 23 6 34 58 . . . . 70 . Level 2 8 | . . . . . . . . . . . . . . . 39 76 . 24 . . . . . . . Level 3 . | . . . . . . . . . . . . . . . . . . 2 . . . . . . . Level 4 . | . . . . . . . . . . . . . . . . . . . . . . . . . . Level 5 . | . . . . . . . . . . . . . . . . . . . . . . . . . . High Security . | . . . . . . . . . . . . . . . . . . . . . . . . . . Max Security . | . . . . . . . . . . . . . . . . . . . . . . . . . . Peak Influence 741 | . 60 7 30 . . 94 332 137 . . . . 171 162 625 510 227 741 362 . . . . 331 184 Initial 362 | . . 7 . . . . 20 77 . . . . 4 73 53 326 176 25 362 . . . . 300 75 Average 151 | . 20 . 5 . . 34 223 68 . . . . 65 67 310 433 133 270 217 . . . . 241 43 Influence Increases 7636 | . 258 . 30 . . 104 880 285 90 90 . 215 706 469 1022 438 267 1339 565 30 . . . 402 446 Destroy 0b10 Robot/C 2980 | . 160 . . . . 60 460 180 80 80 . 180 220 200 480 160 80 340 120 . . . . 60 120 Destroy 0b10 Robot/NC 385 | . 5 . . . . 10 45 20 . . . . 45 15 45 10 40 85 60 . . . . 5 . Destroy Leader 580 | . 40 . . . . 10 118 40 10 10 . 20 58 64 46 . . 90 42 . . . . 12 20 Allied During Kill 972 | . . . . . . . . . . . . . . . 341 170 120 341 . . . . . . . Successful Hack 244 | . 5 . . . . . 21 16 . . . . 79 14 22 . . 7 28 . . . . . 52 Disable Machine 225 | . 15 . . . . . 60 . . . . . . . . . 15 120 . . . . . . 15 Destroy Structure 975 | . 3 . . . . 24 101 29 . . . . 34 116 28 98 12 266 120 . . . . 10 134 Advance Influence 300 | . . . . . . . . . . . . . . . . . . . . . . . . 300 . Partial Spotted 300 | . . . . . . . . . . . . . 75 30 30 . . 30 120 . . . . . 15 Lose Combat Pursuer 675 | . 30 . 30 . . . 75 . . . . 15 195 30 30 . . 60 75 30 . . . 15 90 Influence Decreases 7636 | . 237 21 30 . . 50 762 437 64 136 . 207 563 509 550 579 636 671 1069 267 . . . 268 580 Entered New Map 1399 | . . 14 . . . . 34 95 8 10 . . 4 78 58 257 266 48 379 89 . . . . 59 Time Decay 4503 | . 207 7 30 . . 20 498 342 46 126 . 137 492 361 422 222 190 303 440 178 . . . 238 244 Lost Part 904 | . 30 . . . . 30 80 . 10 . . 70 67 70 10 40 . 120 90 . . . . 10 277 Lost Ally 530 | . . . . . . . . . . . . . . . 60 60 180 200 10 . . . . 20 . Purge Threat 300 | . . . . . . . 150 . . . . . . . . . . . 150 . . . . . . Squads Dispatched 44 | . 4 . 1 . . . 2 1 . . . . 10 9 1 . . 5 6 . . . . 1 4 Investigation 14 | . 3 . . . . . 1 . . . . . 3 3 . . . 1 1 . . . . 1 1 Extermination 14 | . . . . . . . . 1 . . . . 4 3 . . . 1 3 . . . . . 2 Reinforcement 16 | . 1 . 1 . . . 1 . . . . . 3 3 1 . . 3 2 . . . . . 1 Assault . | . . . . . . . . . . . . . . . . . . . . . . . . . . Garrison . | . . . . . . . . . . . . . . . . . . . . . . . . . . Intercept . | . . . . . . . . . . . . . . . . . . . . . . . . . . Searches Triggered . | . . . . . . . . . . . . . . . . . . . . . . . . . . Data Miner Redirects 1 | . . . . . . . . . . . . . . . . . . . 1 . . . . . . Construction Impeded 2 | . . . . . . . 1 . . . . . . . . . . . 1 . . . . . . Haulers Reinforced 2 | . . . . . . . . . . . . . 1 . . . . 1 . . . . . . . Active Scanning Responses . | . . . . . . . . . . . . . . . . . . . . . . . . . . Cargo Convoy Interrupts . | . . . . . . . . . . . . . . . . . . . . . . . . . . Stealth | -11 -10 -10 -9 -9 -9 -8 -8 -7 -7 -7 -7 -6 -6 -5 -5 -5 -5 -5 -4 -4 -4 -4 -3 -3 -3 --------- Run | Yrd Mat Min Mat Min Exi Min Mat Fac Low Low Dat Pro Fac Fac Ext Cet Arc Hub Fac Upp Upp Zhi Pro Res Tes Distress Signals 27 | . 2 . 3 . . . 3 . . . . . 3 1 1 1 . 6 2 . . . . 3 2 Communications Jammed 42 | . . . . . . . . . . . . . 12 10 . . . . 7 . . . 2 . 11 Distress Signals 28 | . . . . . . . . . . . . . 5 10 . . . . 7 . . . . . 6 Times Spotted 310 | . 13 . 1 1 . 6 42 10 5 4 . 10 40 20 30 10 7 31 26 4 6 . 2 8 34 Peak Tracking Total 12 | . 4 . 3 1 . 3 5 4 4 3 . 6 5 5 3 5 1 6 6 4 7 . 1 5 12 Tactical Retreats 31 | . 1 . 1 . . . 5 . . . . 1 8 2 2 . . 2 4 1 . . . 1 3 Traps | -11 -10 -10 -9 -9 -9 -8 -8 -7 -7 -7 -7 -6 -6 -5 -5 -5 -5 -5 -4 -4 -4 -4 -3 -3 -3 ------- Run | Yrd Mat Min Mat Min Exi Min Mat Fac Low Low Dat Pro Fac Fac Ext Cet Arc Hub Fac Upp Upp Zhi Pro Res Tes Traps Triggered 12 | . 3 . . . . . 2 . . . . . . 3 1 . . 2 . . . . . . 1 Indirectly . | . . . . . . . . . . . . . . . . . . . . . . . . . . Trap Hack Attempts . | . . . . . . . . . . . . . . . . . . . . . . . . . . Triggered . | . . . . . . . . . . . . . . . . . . . . . . . . . . Disarmed . | . . . . . . . . . . . . . . . . . . . . . . . . . . Reprogrammed . | . . . . . . . . . . . . . . . . . . . . . . . . . . Reused . | . . . . . . . . . . . . . . . . . . . . . . . . . . Traps Extracted . | . . . . . . . . . . . . . . . . . . . . . . . . . . Installed . | . . . . . . . . . . . . . . . . . . . . . . . . . . Triggered . | . . . . . . . . . . . . . . . . . . . . . . . . . . Machines | -11 -10 -10 -9 -9 -9 -8 -8 -7 -7 -7 -7 -6 -6 -5 -5 -5 -5 -5 -4 -4 -4 -4 -3 -3 -3 ---------- Run | Yrd Mat Min Mat Min Exi Min Mat Fac Low Low Dat Pro Fac Fac Ext Cet Arc Hub Fac Upp Upp Zhi Pro Res Tes Machines Disabled 15 | . 1 . . . . . 4 . . . . . . . . . 1 8 . . . . . . 1 Max in Single Turn 7 | . 1 . . . . . 2 . . . . . . . . . . 7 . . . . . . 1 Garrison Access 4 | . . . . . . . . . . . . . 1 1 . . . . 1 . . . . . 1 Network Hub 1 | . . . . . . . . . . . . . . . . . . 1 . . . . . . . Machines Repaired . | . . . . . . . . . . . . . . . . . . . . . . . . . . Machines Dismantled . | . . . . . . . . . . . . . . . . . . . . . . . . . . Machines Sabotaged . | . . . . . . . . . . . . . . . . . . . . . . . . . . Overloaded Fab Kills . | . . . . . . . . . . . . . . . . . . . . . . . . . . Hacking | -11 -10 -10 -9 -9 -9 -8 -8 -7 -7 -7 -7 -6 -6 -5 -5 -5 -5 -5 -4 -4 -4 -4 -3 -3 -3 --------- Run | Yrd Mat Min Mat Min Exi Min Mat Fac Low Low Dat Pro Fac Fac Ext Cet Arc Hub Fac Upp Upp Zhi Pro Res Tes Machines Accessed 78 | . 4 . 2 . 1 . 8 3 . 1 3 . 15 10 3 . . 3 7 2 . 5 . 1 10 Terminals 49 | . 4 . 1 . . . 7 2 . 1 . . 9 8 3 . . 2 5 . . . . . 7 Fabricators 6 | . . . . . . . . . . . . . 3 . . . . . 1 . . . . 1 1 Repair Stations 2 | . . . 1 . . . . . . . . . 1 . . . . . . . . . . . . Recycling Units . | . . . . . . . . . . . . . . . . . . . . . . . . . . Scanalyzers 5 | . . . . . . . 1 1 . . . . 1 1 . . . . . . . . . . 1 Garrison Access 5 | . . . . . . . . . . . . . 1 1 . . . 1 1 . . . . . 1 Total Hacks 272 | . 12 . 4 . 9 . 25 6 . 1 26 . 35 26 6 . . 8 43 5 . 18 . 6 42 Successful 147 | . 4 . 2 . 9 . 8 4 . 1 26 . 11 10 2 . . 2 23 5 . 18 . 1 21 Failed 124 | . 8 . 2 . . . 16 2 . . . . 24 16 4 . . 6 20 . . . . 5 21 Catastrophic 27 | . 3 . . . . . 4 1 . . . . 7 5 1 . . . 2 . . . . 1 3 Database Lockouts 1 | . . . . . . . 1 . . . . . . . . . . . . . . . . . . Manual 103 | . 9 . 1 . . . 18 1 . . . . 14 10 6 1 . 6 22 . . . . 5 10 Terminals 161 | . 12 . 2 . . . 23 5 . 1 . . 20 22 6 . . 6 36 . . . . . 28 Fabricators 24 | . . . . . . . . . . . . . 8 . . . . . 5 . . . . 6 5 Repair Stations 4 | . . . 2 . . . . . . . . . 2 . . . . . . . . . . . . Recycling Units . | . . . . . . . . . . . . . . . . . . . . . . . . . . Scanalyzers 15 | . . . . . . . 2 1 . . . . 3 3 . . . . . . . . . . 6 Garrison Access 10 | . . . . . . . . . . . . . 2 1 . . . 2 2 . . . . . 3 Terminal Hacks 112 | . 2 . 1 . 9 . 6 4 . 1 26 . 4 6 1 . . 1 15 5 . 18 . . 13 Record 27 | . . . . . 9 . . . . 1 6 . . . . . . . 1 4 . 6 . . . Part Schematic 17 | . . . . . . . . . . . 10 . . . . . . . 3 . . 4 . . . Robot Schematic 7 | . . . . . . . . . . . 7 . . . . . . . . . . . . . . Robot Analysis 5 | . . . . . . . 1 . . . . . . . . . . . . . . 4 . . . Prototype ID Bank 15 | . . . 1 . . . . 1 . . 3 . . 1 . . . . 3 . . 4 . . 2 Open Door 2 | . . . . . . . . . . . . . . . . . . . . 1 . . . . 1 Level Access Points 2 | . . . . . . . . . . . . . . . . . . 1 1 . . . . . . Branch Access Points 4 | . . . . . . . 1 1 . . . . . 1 . . . . 1 . . . . . . Alert Level 6 | . . . . . . . 1 . . . . . . 1 . . . . 1 . . . . . 3 Unreport Threat 2 | . . . . . . . 1 . . . . . . . . . . . 1 . . . . . . Locate Traps 7 | . 1 . . . . . 1 1 . . . . . . 1 . . . . . . . . . 3 Recall Investigation 2 | . . . . . . . . . . . . . . 1 . . . . . . . . . . 1 Recall Extermination 3 | . . . . . . . . . . . . . 1 1 . . . . 1 . . . . . . Recall Reinforcements 2 | . . . . . . . . . . . . . 1 . . . . . . . . . . . 1 Registered Components 3 | . 1 . . . . . . . . . . . 1 . . . . . . . . . . . 1 Registered Prototypes 1 | . . . . . . . 1 . . . . . . . . . . . . . . . . . . Zone Layout 7 | . . . . . . . . 1 . . . . 1 1 . . . . 3 . . . . . 1 Fabricator Hacks 8 | . . . . . . . . . . . . . 3 . . . . . 2 . . . . 1 2 Load Schematic 5 | . . . . . . . . . . . . . 2 . . . . . 1 . . . . 1 1 Build 3 | . . . . . . . . . . . . . 1 . . . . . 1 . . . . . 1 Repair Station Hacks 1 | . . . . . . . . . . . . . 1 . . . . . . . . . . . . Scan Component 1 | . . . . . . . . . . . . . 1 . . . . . . . . . . . . Recycling Unit Hacks . | . . . . . . . . . . . . . . . . . . . . . . . . . . Scanalyzer 7 | . . . . . . . 1 . . . . . 1 2 . . . . . . . . . . 3 Insert Component 4 | . . . . . . . 1 . . . . . 1 1 . . . . . . . . . . 1 Analyze 2 | . . . . . . . . . . . . . . 1 . . . . . . . . . . 1 Retrieve Study 1 | . . . . . . . . . . . . . . . . . . . . . . . . . 1 Garrison Access Hacks 4 | . . . . . . . . . . . . . 1 1 . . . . 1 . . . . . 1 Seal Access 4 | . . . . . . . . . . . . . 1 1 . . . . 1 . . . . . 1 Unauthorized Hacks 15 | . 2 . 1 . . . 1 . . . . . 1 1 1 . . 1 5 . . . . . 2 Terminals 10 | . 2 . 1 . . . 1 . . . . . . 1 1 . . 1 2 . . . . . 1 Assimilate 2 | . 1 . . . . . . . . . . . . . . . . . 1 . . . . . . Botnet 7 | . 1 . 1 . . . 1 . . . . . . 1 1 . . . 1 . . . . . 1 Sabotage 1 | . . . . . . . . . . . . . . . . . . 1 . . . . . . . Fabricators 5 | . . . . . . . . . . . . . 1 . . . . . 3 . . . . . 1 Report 2 | . . . . . . . . . . . . . 1 . . . . . 1 . . . . . . Prioritize 2 | . . . . . . . . . . . . . . . . . . . 1 . . . . . 1 Fabnet 1 | . . . . . . . . . . . . . . . . . . . 1 . . . . . . Repair Stations . | . . . . . . . . . . . . . . . . . . . . . . . . . . Recycling Units . | . . . . . . . . . . . . . . . . . . . . . . . . . . Scanalyzers . | . . . . . . . . . . . . . . . . . . . . . . . . . . Garrison Access . | . . . . . . . . . . . . . . . . . . . . . . . . . . Data Cores Recovered 2 | . . . . . . . . 1 . . . . . . 1 . . . . . . . . . . Used . | . . . . . . . . . . . . . . . . . . . . . . . . . . Hacking Detections 55 | . 4 . 2 . . . 7 3 . . . . 14 9 3 . . 2 4 . . . . 1 6 Full Trace Events 9 | . 2 . . . . . . . . . . . 3 2 . . . . 1 . . . . . 1 Feedback Events . | . . . . . . . . . . . . . . . . . . . . . . . . . . Feedback Blocked . | . . . . . . . . . . . . . . . . . . . . . . . . . . Robot Schematics Acquired 7 | . . . . . . . . . . . 7 . . . . . . . . . . . . . . Robots Built . | . . . . . . . . . . . . . . . . . . . . . . . . . . Authchips . | . . . . . . . . . . . . . . . . . . . . . . . . . . Time . | . . . . . . . . . . . . . . . . . . . . . . . . . . Total Robot Build Rating . | . . . . . . . . . . . . . . . . . . . . . . . . . . Part Schematics Acquired 18 | . . . . . . . . . . . 10 . . 1 . . . . 2 . . 4 . . 1 Parts Built 5 | . . . . . . . . . . . . . 1 . . . . . 2 . . . . . 2 Authchips . | . . . . . . . . . . . . . . . . . . . . . . . . . . Time 132 | . . . . . . . . . . . . . 53 . . . . . 58 . . . . . 21 Total Part Build Rating 36 | . . . . . . . . . . . . . 6 . . . . . 14 . . . . . 16 Part Studies Acquired 1 | . . . . . . . . . . . . . . . . . . . . . . . . . 1 Parts Repaired . | . . . . . . . . . . . . . . . . . . . . . . . . . . Time . | . . . . . . . . . . . . . . . . . . . . . . . . . . Parts Recycled . | . . . . . . . . . . . . . . . . . . . . . . . . . . Recycled Matter . | . . . . . . . . . . . . . . . . . . . . . . . . . . Retrieved Matter . | . . . . . . . . . . . . . . . . . . . . . . . . . . Retrieved Components . | . . . . . . . . . . . . . . . . . . . . . . . . . . Parts Scanalyzed 2 | . . . . . . . . . . . . . 1 . . . . . . . . . . . 1 Part Schematics Acquired 2 | . . . . . . . . . . . . . . 1 . . . . . . . . . . 1 Parts Damaged . | . . . . . . . . . . . . . . . . . . . . . . . . . . Bothacking | -11 -10 -10 -9 -9 -9 -8 -8 -7 -7 -7 -7 -6 -6 -5 -5 -5 -5 -5 -4 -4 -4 -4 -3 -3 -3 ------------ Run | Yrd Mat Min Mat Min Exi Min Mat Fac Low Low Dat Pro Fac Fac Ext Cet Arc Hub Fac Upp Upp Zhi Pro Res Tes Used RIF Installer . | . . . . . . . . . . . . . . . . . . . . . . . . . . Robots Hacked 2 | . . . . . . . . . . . . . . . . . . . . . . . . 2 . Non-combat . | . . . . . . . . . . . . . . . . . . . . . . . . . . Combat 2 | . . . . . . . . . . . . . . . . . . . . . . . . 2 . Robot Hacks Applied . | . . . . . . . . . . . . . . . . . . . . . . . . . . Relay Couplers Released . | . . . . . . . . . . . . . . . . . . . . . . . . . . Fabnet Peak Effective % 3 | . . . . . . . . . . . . . . . . . . . . . . . 3 3 3 Autooverrided 2 | . . . . . . . . . . . . . . . . . . . . . . . . 2 . Robots Rewired 24 | . . . . . . . . . . . . . . . 24 . . . . . . . . . . Allies Hacked . | . . . . . . . . . . . . . . . . . . . . . . . . . . Hacks Repelled . | . . . . . . . . . . . . . . . . . . . . . . . . . . Allies | -11 -10 -10 -9 -9 -9 -8 -8 -7 -7 -7 -7 -6 -6 -5 -5 -5 -5 -5 -4 -4 -4 -4 -3 -3 -3 -------- Run | Yrd Mat Min Mat Min Exi Min Mat Fac Low Low Dat Pro Fac Fac Ext Cet Arc Hub Fac Upp Upp Zhi Pro Res Tes Total Allies 41 | . . . . . . . . . . . . . . . 30 5 . . 1 3 . . . 2 . Largest Group 26 | . . . . . . . . . . . . . . . 25 26 21 10 1 3 . . . 1 . Highest-Rated Group 1234 | . . . . . . . . . . . . . . . 866 1234 1064 560 10 138 . . . 47 . Highest-Rated Ally 159 | . . . . . . . . . . . . . . . 159 159 159 96 10 46 . . . 47 . Total Orders 3 | . . . . . . . . . . . . . . . 2 . . . 1 . . . . . . STAY 2 | . . . . . . . . . . . . . . . 1 . . . 1 . . . . . . FOLLOW 1 | . . . . . . . . . . . . . . . 1 . . . . . . . . . . Ally Attacks 246 | . . . . . . . . . . . . . . . 84 58 36 61 . 4 . . . 3 . Total Damage 5552 | . . . . . . . . . . . . . . . 1726 1258 750 1726 . 92 . . . . . Kills 41 | . . . . . . . . . . . . . . . 14 11 5 11 . . . . . . . Allies Corrupted 2 | . . . . . . . . . . . . . . . 1 . . 1 . . . . . . . Allies Melted . | . . . . . . . . . . . . . . . . . . . . . . . . . . Intel | -11 -10 -10 -9 -9 -9 -8 -8 -7 -7 -7 -7 -6 -6 -5 -5 -5 -5 -5 -4 -4 -4 -4 -3 -3 -3 ------- Run | Yrd Mat Min Mat Min Exi Min Mat Fac Low Low Dat Pro Fac Fac Ext Cet Arc Hub Fac Upp Upp Zhi Pro Res Tes Active Infowar (turns) 13669 | . . . 197 101 603 89 1395 774 443 704 127 599 2134 1058 1022 465 383 710 1098 433 147 91 153 509 434 Optics 11249 | . . . . . . . . 739 443 704 127 599 2134 1058 1022 465 383 710 1098 433 147 91 153 509 434 Sensors 2368 | . . . . . . . . . . . . . 643 902 57 . . 532 . . . . . . 234 Seismic 8237 | . . . 197 101 603 89 1395 774 443 683 127 528 1417 . . . . . 231 433 147 76 140 509 344 Machine Analysis 748 | . . . . . . . . . . . . . . 748 . . . . . . . . . . . Triangulation 668 | . . . . . . . . . . . . . . . . . . . 300 . . . . 299 69 Jamming 842 | . . . . . . . . . . . . . 45 51 120 5 . . 67 . . . 13 163 378 Robot Analysis Total 5 | . . . . . . . 1 . . . . . . . . . . . . . . 4 . . . Derelict Logs Recovered 5 | . . . . 1 . . . . . . . 2 . . . . . . . 2 . . . . . Drone Launches . | . . . . . . . . . . . . . . . . . . . . . . . . . . Drone Recoveries . | . . . . . . . . . . . . . . . . . . . . . . . . . . Exploration | -11 -10 -10 -9 -9 -9 -8 -8 -7 -7 -7 -7 -6 -6 -5 -5 -5 -5 -5 -4 -4 -4 -4 -3 -3 -3 ------------- Run | Yrd Mat Min Mat Min Exi Min Mat Fac Low Low Dat Pro Fac Fac Ext Cet Arc Hub Fac Upp Upp Zhi Pro Res Tes Turns Passed 14861 | . 688 256 197 101 603 89 1423 774 443 704 127 599 2134 1058 1022 465 383 710 1098 433 147 91 153 509 654 Spaces Moved 12640 | 1 382 181 104 62 387 51 635 425 267 420 76 442 2230 1074 884 161 137 771 1586 577 259 149 265 448 666 Core 44 | . . . . . . . . . . . . . . . . . . . . . . . . . 44 Treads 2060 | . 2 . . . . . 619 425 267 420 76 251 . . . . . . . . . . . . . Legs 15 | 1 8 . . . . . . . . . . 1 . . . . . . . . . . . . 5 Wheels 1173 | . 372 181 104 62 387 51 16 . . . . . . . . . . . . . . . . . . Hover 8189 | . . . . . . . . . . . . . 1261 1074 884 161 137 771 1586 577 259 149 265 448 617 Flight 1159 | . . . . . . . . . . . . 190 969 . . . . . . . . . . . . Fastest Speed 32 | 120 105 140 155 155 155 140 140 160 160 160 160 44 32 48 48 48 48 40 45 52 52 52 52 52 50 Average Speed 80 | 120 123 140 155 155 155 148 161 160 160 160 160 114 66 51 49 49 49 47 48 52 52 52 52 52 58 Slowest Speed 330 | 120 240 140 155 155 155 155 240 160 160 160 160 330 119 59 53 53 53 240 56 52 52 52 52 52 150 Overloaded Moves . | . . . . . . . . . . . . . . . . . . . . . . . . . . Propulsion Burnouts . | . . . . . . . . . . . . . . . . . . . . . . . . . . Robots Hopped 20 | . . . . . . . . . . . . . 20 . . . . . . . . . . . . Potential Cave-ins 9 | . . . . . . . . . . . . 2 . . 7 . . . . . . . . . . Cave-ins Triggered . | . . . . . . . . . . . . . . . . . . . . . . . . . . Teleports 1 | . . . . . . . . . . . . . . . . . . . . . . . . . 1 Exploration Rate (%) 51 | 1 83 43 12 28 87 19 62 18 58 62 72 64 65 39 70 60 84 53 32 67 49 63 54 11 73 Regions Visited 25 Branch Regions 17 Pre-discovered Areas 5 | . . . . 1 . . . . . . 1 . . . . . . . . . . 3 . . . Known Exits Taken 7 | . . . . . . . . 1 . . . . 1 1 . . . 1 1 . . . 1 1 . Unknown Exits Taken 18 | 1 1 1 1 1 1 1 1 . 1 1 1 1 . . 1 1 1 . . 1 1 1 . . . Scrap Searched 6 | . . . . . . . . . 2 3 . . . . . . . . . 1 . . . . . Spaces Dug 130 | . . . . . . . 1 3 . . . 6 17 36 10 . . 9 26 8 . . 1 5 8 Terrain Destroyed 867 | . 2 . . . . 57 135 42 26 . . 61 32 60 17 106 . 172 73 8 . . 1 5 70 Melee 101 | . . . . . . . 1 3 . . . . 16 20 4 . . 9 26 8 . . 1 5 8 Projectile 50 | . . . . . . . 24 . . . . 6 1 2 13 . . . . . . . . . 4 AOE 716 | . 2 . . . . 57 110 39 26 . . 55 15 38 . 106 . 163 47 . . . . . 58 Terrain Rammed . | . . . . . . . . . . . . . . . . . . . . . . . . . . Walls Destroyed . | . . . . . . . . . . . . . . . . . . . . . . . . . . Machines Disabled . | . . . . . . . . . . . . . . . . . . . . . . . . . . Actions | -11 -10 -10 -9 -9 -9 -8 -8 -7 -7 -7 -7 -6 -6 -5 -5 -5 -5 -5 -4 -4 -4 -4 -3 -3 -3 --------- Run | Yrd Mat Min Mat Min Exi Min Mat Fac Low Low Dat Pro Fac Fac Ext Cet Arc Hub Fac Upp Upp Zhi Pro Res Tes Total 16429 | . 525 184 140 67 390 58 914 492 278 439 82 504 2741 1473 1388 531 432 1001 1822 695 270 162 276 699 866 Wait 2497 | . 87 4 32 6 1 1 137 12 1 4 1 19 365 259 314 351 255 102 112 109 12 1 7 221 84 Move 12576 | . 381 180 103 61 386 50 634 424 266 419 75 441 2191 1073 883 160 136 770 1585 576 258 148 264 447 665 Hop 18 | . . . . . . . . . . . . . 18 . . . . . . . . . . . . Pick Up 115 | . 4 . 3 . 1 . 23 5 1 2 . 1 15 18 1 1 6 10 12 . . 3 . 3 6 Fast Attach 119 | . 6 . . . . . 11 2 1 1 3 2 25 8 1 . 8 19 13 . . 3 . 2 14 Attach 79 | . 3 . 2 . . . 6 2 2 . . 6 10 10 1 3 2 7 5 . . 1 . 3 16 Detach 39 | . 2 . . . . . 3 1 . . . 2 10 2 . . 5 1 7 . . 1 . . 5 Swap 124 | . 4 . . . 1 2 11 14 2 2 . 6 16 18 12 5 1 6 11 2 . 1 4 4 2 Drop 135 | . . . . . 1 . 16 11 1 1 3 4 21 21 7 . 6 15 15 . . 4 . 4 5 Fire 240 | . 38 . . . . 5 67 15 4 10 . 23 9 7 12 11 . 1 5 . . . . . 33 Melee 343 | . . . . . . . 1 6 . . . . 60 57 41 . 13 66 57 8 . . 1 15 18 Ram 7 | . . . . . . . . . . . . . 1 . 3 . . . . . . . . . 3 Kick . | . . . . . . . . . . . . . . . . . . . . . . . . . . Crush 5 | . . . . . . . 5 . . . . . . . . . . . . . . . . . . Escape Stasis 21 | . . . . . . . . . . . . . . . 2 . . 4 . . . . . . 15 Rewire 111 | . . . . . . . . . . . . . . . 111 . . . . . . . . . . Trap . | . . . . . . . . . . . . . . . . . . . . . . . . . . Miscellaneous . | . . . . . . . . . . . . . . . . . . . . . . . . . . Route ------- -11/Scrapyard -10/Materials (discovered 2 exits: [*Min x2]) -10/Mines -9/Materials (discovered 2 exits: [*Min] / [*Sto]) -9/Mines -9/Exiles -8/Mines -8/Materials (discovered 2 exits: *Fac x2) -7/Factory (discovered 3 exits: *Fac / *Low x2) -7/Lower Caves -7/Lower Caves (discovered 2 exits: *Fac / *Dat) -7/Data Miner -6/Proximity Caves -6/Factory (discovered 2 exits: *Fac / *Low) -5/Factory (discovered 5 exits: *Fac / *Upp x2 / *Ext x2) -5/Extension (discovered 2 exits: *Fac / *Cet) -5/Cetus (discovered 2 exits: *Fac / [*Arc]) -5/Archives (discovered 3 exits: *Fac / *Hub x2) -5/Hub_04(d) (discovered 4 exits: *Fac x4) -4/Factory (discovered 6 exits: *Res x4 / *Upp x2) -4/Upper Caves -4/Upper Caves -4/Zhirov -3/Proximity Caves -3/Research (discovered 2 exits: Arm / *Tes) -3/Testing History --------- Turn | Location | Event 1 | -11/Scrapyard | Discovered new exit (range 0) 1 | -11/Scrapyard | Entered Materials 89 | -10/Materials | Discovered new exit (range 9) 201 | -10/Materials | Discovered new exit (range 11) 305 | -10/Materials | Build established: Mutant 689 | -10/Materials | Entered Mines 763 | -10/Mines | Discovered new exit (range 9) 945 | -10/Mines | Entered Materials 945 | -9/Materials | Evolved 2 slots: Utility x1, Weapon x1 1098 | -9/Materials | Discovered new exit (range 6) 1106 | -9/Materials | Met 8R-AWN 1127 | -9/Materials | Discovered new exit (range 8) 1142 | -9/Materials | Entered Mines 1143 | -9/Mines | Followed 8R-AWN into the Mines 1203 | -9/Mines | Learned location of Storage (-9) 1233 | -9/Mines | Build established: Gunner 1237 | -9/Mines | Discovered new exit (range 5) 1243 | -9/Mines | Entered Exiles 1281 | -9/Exiles | Welcomed by 8R-AWN 1323 | -9/Exiles | Met EX-HEX 1364 | -9/Exiles | Met EX-BIN 1491 | -9/Exiles | Met EX-DEC 1602 | -9/Exiles | Visited The Gauntlet 1829 | -9/Exiles | Discovered new exit (range 14) 1846 | -9/Exiles | Entered Mines 1918 | -8/Mines | Discovered new exit (range 13) 1935 | -8/Mines | Entered Materials 1935 | -8/Materials | Evolved 2 slots: Propulsion x1, Utility x1 1961 | -8/Materials | Lost 3 parts (1p2w) 2246 | -8/Materials | Lost 3 parts (1p1n1u) 2266 | -8/Materials | Central database locked down 2472 | -8/Materials | Discovered new exit (range 14) 2725 | -8/Materials | Discovered new exit (range 4) 2919 | -8/Materials | Build established: Tank 3358 | -8/Materials | Entered Factory 3358 | -7/Factory | Evolved 2 slots: Propulsion x2 3420 | -7/Factory | Identified exit to Lower Caves 3686 | -7/Factory | Discovered new exit (range 7) 3808 | -7/Factory | Build established: Mutant 4132 | -7/Factory | Entered Lower Caves 4376 | -7/Lower Caves | Build established: Scavenger-Tank 4528 | -7/Lower Caves | Spotted B-75 Beast 4569 | -7/Lower Caves | Discovered new exit (range 5) 4575 | -7/Lower Caves | Entered another Lower Caves area 4601 | -7/Lower Caves | Discovered new exit (range 5) 5267 | -7/Lower Caves | Discovered new exit (range 2) 5279 | -7/Lower Caves | Entered Data Miner 5279 | -7/Data Miner | Discovered new exit (range 6) 5303 | -7/Data Miner | Met Data Miner 5349 | -7/Data Miner | Learned location of Section 7 (-2) 5349 | -7/Data Miner | Acquired the access code to Warlord's prototype stash 5362 | -7/Data Miner | Received God Mode back door access code from Data Miner 5406 | -7/Data Miner | Entered Proximity Caves 5408 | -6/Proximity Caves | Attracted the attention of an 0b10 checkpoint 5434 | -6/Proximity Caves | Learned location of 1 exit from Factory 5859 | -6/Proximity Caves | Spotted B-75 Beast 5919 | -6/Proximity Caves | Lost 6 parts (4n1u1w) 5936 | -6/Proximity Caves | Learned location of 1 exit from Factory 5995 | -6/Proximity Caves | Discovered new exit (range 6) 6005 | -6/Proximity Caves | Entered Factory 6005 | -6/Factory | Evolved 2 slots: Propulsion x1, Utility x1 6006 | -6/Factory | Identified exit to Lower Caves 6006 | -6/Factory | Identified exit to Factory 6099 | -6/Factory | Build established: Mutant 6454 | -6/Factory | Fabricated Nuclear Pulse Array (x1) 7267 | -6/Factory | Build established: Hacker-Mutant 7574 | -6/Factory | Build established: Mutant 7961 | -6/Factory | Build established: Scavenger-Mutant 8139 | -6/Factory | Entered another Factory area 8139 | -5/Factory | Evolved 2 slots: Utility x2 8436 | -5/Factory | Build established: Mutant 8564 | -5/Factory | Discovered new exit (range 5) 8803 | -5/Factory | Identified exit to Upper Caves 8803 | -5/Factory | Identified exit to Extension 8929 | -5/Factory | Lost 3 parts (1n2u) 8977 | -5/Factory | Lost 3 parts (2n1u) 9143 | -5/Factory | System corruption reached 10% 9197 | -5/Factory | Entered Extension 9293 | -5/Extension | Rescued A7 9402 | -5/Extension | Spotted B-75 Beast 9831 | -5/Extension | Build established: Commander-Gladiator 9875 | -5/Extension | Rescued a captive Derelict 9919 | -5/Extension | Rescued a captive Derelict 9926 | -5/Extension | Rescued a captive Derelict 10073 | -5/Extension | Rescued a captive Derelict 10075 | -5/Extension | Rescued a captive Derelict 10128 | -5/Extension | Discovered new exit (range 10) 10128 | -5/Extension | Discovered new exit (range 6) 10219 | -5/Extension | Entered Cetus 10219 | -5/Cetus | Accompanied by 24 allies (A7) 10224 | -5/Cetus | Acquired a Cetus Manufacturing Module code from A7 10227 | -5/Cetus | Spotted Cetus Guard 10227 | -5/Cetus | Spotted Cetus Guard 10227 | -5/Cetus | Spotted Cetus Guard 10227 | -5/Cetus | Spotted Cetus Guard 10243 | -5/Cetus | Allies destroyed Cetus Guard 10249 | -5/Cetus | Allies destroyed Cetus Guard 10252 | -5/Cetus | Destroyed Cetus Guard 10256 | -5/Cetus | Allies destroyed Cetus Guard 10276 | -5/Cetus | Started Cetus Manufacturing Module 10286 | -5/Cetus | Lost 3 allies 10301 | -5/Cetus | Manufactured an Enhanced Grunt 10326 | -5/Cetus | Manufactured an Enhanced Grunt 10351 | -5/Cetus | Manufactured an Enhanced Grunt 10376 | -5/Cetus | Manufactured an Enhanced Grunt 10401 | -5/Cetus | Manufactured an Enhanced Grunt 10475 | -5/Cetus | Discovered new exit (range 22) 10544 | -5/Cetus | Spotted Cetus Guard 10547 | -5/Cetus | Spotted Cetus Guard 10548 | -5/Cetus | Spotted Cetus Guard 10549 | -5/Cetus | Spotted Cetus Guard 10554 | -5/Cetus | Allies destroyed Cetus Guard 10558 | -5/Cetus | Allies destroyed Cetus Guard 10575 | -5/Cetus | Allies destroyed Cetus Guard 10575 | -5/Cetus | Allies destroyed Cetus Guard 10576 | -5/Cetus | Discovered new exit (range 22) 10592 | -5/Cetus | Met Revision 17 10593 | -5/Cetus | Lost 3 parts (2n1w) 10606 | -5/Cetus | Lost 3 allies 10684 | -5/Cetus | Entered Archives 10684 | -5/Archives | Accompanied by 21 allies (A7) 10741 | -5/Archives | Discovered new exit (range 22) 10763 | -5/Archives | Lost 10 allies 10817 | -5/Archives | Discovered new exit (range 14) 11000 | -5/Archives | Discovered new exit (range 17) 11067 | -5/Archives | Entered Hub_04(d) 11067 | -5/Hub_04(d) | Accompanied by 10 allies 11341 | -5/Hub_04(d) | Discovered new exit (range 8) 11537 | -5/Hub_04(d) | Identified exit to Factory 11581 | -5/Hub_04(d) | Lost 3 allies 11608 | -5/Hub_04(d) | Core integrity fell below 50% 11632 | -5/Hub_04(d) | Lost 3 parts (2n1u) 11694 | -5/Hub_04(d) | Lost 4 parts (3n1u) 11754 | -5/Hub_04(d) | Lost 5 parts (3n2u) 11756 | -5/Hub_04(d) | Network Hub disabled 11763 | -5/Hub_04(d) | Spotted Lightning 11773 | -5/Hub_04(d) | Spotted Lightning 11777 | -5/Hub_04(d) | Entered Factory 11777 | -4/Factory | Evolved 2 slots: Power x1, Utility x1 11963 | -4/Factory | Identified exit to Upper Caves 12067 | -4/Factory | Incoming investigation squad redirected 12099 | -4/Factory | Fabricated Imp. Antigrav System (x2) 12122 | -4/Factory | Build established: Hacker-Gladiator 12218 | -4/Factory | Lost 6 parts (1p3n1u1w) 12527 | -4/Factory | Identified exit to Research 12875 | -4/Factory | Entered Upper Caves 13012 | -4/Upper Caves | Learned location of 1 exit from Research 13194 | -4/Upper Caves | Discovered new exit (range 10) 13203 | -4/Upper Caves | Entered an active Warlord outpost 13206 | -4/Upper Caves | A Commander dispatched an escort 13209 | -4/Upper Caves | Learned Extension trap positions 13209 | -4/Upper Caves | Learned Extension emergency access door positions 13209 | -4/Upper Caves | Learned Extension security intel 13209 | -4/Upper Caves | Learned Armory terminal intel 13308 | -4/Upper Caves | Entered another Upper Caves area 13308 | -4/Upper Caves | Accompanied by 3 allies 13309 | -4/Upper Caves | Commander's escort returned to base 13309 | -4/Upper Caves | Commander's escort returned to base 13309 | -4/Upper Caves | Commander's escort returned to base 13325 | -4/Upper Caves | Spotted B-86 Titan 13449 | -4/Upper Caves | Discovered new exit (range 12) 13452 | -4/Upper Caves | Attracted the attention of an 0b10 outpost 13455 | -4/Upper Caves | Entered Zhirov 13455 | -4/Zhirov | Discovered new exit (range 3) 13465 | -4/Zhirov | Met Zhirov 13474 | -4/Zhirov | Learned location of Quarantine (-2) 13474 | -4/Zhirov | Learned location of Testing (-3) 13474 | -4/Zhirov | Learned location of Command (-1) 13484 | -4/Zhirov | Zhirov requested help retrieving the SGEMP Prototype 13496 | -4/Zhirov | Found Alien Artifact 13496 | -4/Zhirov | Identified Integrated Dissipator 13496 | -4/Zhirov | Installed Integrated Dissipator, increased core heat dissipation (+20) 13504 | -4/Zhirov | Found Alien Artifact 13546 | -4/Zhirov | Entered Proximity Caves 13632 | -3/Proximity Caves | Spotter reported a threat 13673 | -3/Proximity Caves | Discovered exit to Research (range 11) 13696 | -3/Proximity Caves | Spotter reported a threat 13699 | -3/Proximity Caves | Entered Research 13699 | -3/Research | Evolved 2 slots: Utility x2 13700 | -3/Research | Identified exit to Armory 13701 | -3/Research | Identified exit to Testing 13899 | -3/Research | Revision forces began assault on 0b10 13938 | -3/Research | Met up with Revision 17++ 14204 | -3/Research | Spotted B-86 Titan 14208 | -3/Research | Entered Testing 14308 | -3/Testing | Lost 6 parts (1p4u1w) 14320 | -3/Testing | Build established: Hacker-Mutant 14327 | -3/Testing | Spotted Striker 14328 | -3/Testing | Spotted Striker 14466 | -3/Testing | Fabricated Cmb. Antigrav System (x2) 14518 | -3/Testing | Found Prototype Hackware 14518 | -3/Testing | Identified Exp. System Shield 14611 | -3/Testing | Identified Transdimensional Reconstructor 14611 | -3/Testing | Warped through subspace 14642 | -3/Testing | Released all parts (7) 14664 | -3/Testing | System corruption reached 10% 14667 | -3/Testing | Core integrity fell below 50% 14691 | -3/Testing | Lost 14 parts (3p5n3u3w) 14707 | -3/Testing | Found Gamma Bomb Array 14788 | -3/Testing | Core integrity fell below 20% 14811 | -3/Testing | Lost 6 parts (1p2n3w) 14848 | -3/Testing | Released all parts (2) 14862 | -3/Testing | Destroyed by P-80 Master with Gamma Rifle Last Messages --------------- 14798_ System corrupted: Heat flow error (+259). 14810_ Acquired 5 matter. 14816_ Acquired Gamma Bomb Array. 14820_ System corrupted: Gamma Bomb Array failed to launch. 14820_ Slug penetrates Wall. 14822_ Door malfunctions. 14824_ System corrupted: Gamma Bomb Array failed to launch. 14824_ Slug penetrates Wall. 14829_ Penetrated by Slug. 14830_ System corrupted: Heat flow error (+141). 14831_ P-80 Master misfires. 14839_ U-05 Engineer repairs door. 14839_ Cmb. Antigrav System destroyed. 14840_ Gamma Bomb Array destroyed. 14845_ Hvy. Antimatter Reactor destroyed. 14848_ 4P7D8RTY Y/SFUJG|RA&KVT2B4EZSGXOY&PZ 14848_ Released Adv. Target Analyzer. 14848_ Released Cmb. Antigrav System. Map ----- +----------------------------------------------------+ | #############??????????########??????????????????? | | """ #??????????# !#??????????????????? | | "T" #??????????# """ #??????????????????? | | #??????????# """ #??????????????????? | | #??????????# """ ####???????????????? | | """" """" ############ "" #???????????????? | | """" """" # ## """#???????????????? | | """" """" # ## "" S"#????????##??#### | | """" """" # """ ##"""= !#???????????# ?? | | # """ ##"" = #???????????# """ | | # """ ""##""F" #???????????#! """ | | # """ T"##"""" #???????????# """ | | ######## # """ ""## """ #???????????# | | # # ## #???????????# """ | | ! # ###+#############+####????????# """ | | / = ##########? """ | | # ##"""S"""#??? | | # ##""" """######/# | | # p " k # # | | ################ """ # / # | | #???######?????# G # # " | | ############ ####### """ # # " | | %%%%!|= T " # ! ### " | | ############ "" R k # #?# | | #??????????# ####### / #?# | | #####??????## ###?????## @### # #?# ## | | #???????# #????????# #?###### #?# #? | | #???????# #????????# #??????# #?# #? | | ####????# #????????+ ??????#% #?# #? | | """#????# #????????# ?????# #?# ## | | [ R"######/####?????# ????# #?# "# | | =*!"""# ####??# ###????# #?# # | | !!%#### "" #??# #??????# #?# # | | !%"### """ """ """#??# #############/####### # | | *%/% + "" """ T"#### # | | #"###### "" " """# # | | ? #????# "" # ^ # | | ?##????# #### g / | | ???????# !! #??####A ################## # | | ############/##/####### #??# ?# # | | "" #??# # ## | | "T #??# # | | ############+########## #??# / | | ?????????? ?^???????######??# # | | ?????????""""?????????????????# """ """ # | | ???????? """"?????????????????# """ """ ?# ## | | ???????# """??^^?????????????????""" """ ?# #? | | ???????# """?^????????????????????"" """ ?# #? | | ???????# ??????????????????# """ """ # ## | | ???????# ??????????????????# """ """ # # | +----------------------------------------------------+ Best States ------------- Heat Dissipation 66 Energy Generation 41 Energy Capacity 390 Matter Stores 300 Matter Capacity 300 Sight Range 22 Robot Scan Range 16 Terrain Scan Density 10 Jamming Range 16 Additional Mass Support 12 Armor Coverage 600 Propulsion Shielding 33 Phase Shifting 10 Evasion (%) 76 Targeting Accuracy 6 Melee Accuracy 12 Target Analysis 8 Recoil Reduction 5 Offensive Hacking 24 Defensive Hacking 30 Item Schematics ----------------- Combat Drone Bay | -7/Data Miner | Free Lgt. Regenerative Plating | -7/Data Miner | Free Biomechanical Wings | -7/Data Miner | Free Exp. Propulsion Shielding | -7/Data Miner | Free Scatter Rocket Array | -7/Data Miner | Free Nuclear Pulse Array | -7/Data Miner | Free Imp. Recalibrator | -7/Data Miner | Free Variable Charge Gun | -7/Data Miner | Free Drone Bay | -7/Data Miner | Free Imp. Point Defense System | -7/Data Miner | Free Cmb. Airjet | -5/Factory | Scanalyzed Imp. Antigrav System | -4/Factory | Hacked Imp. Linear Gravjet | -4/Factory | Hacked Assault Drone Bay | -4/Zhirov | Free Exp. Heat Sink | -4/Zhirov | Free Exp. Optical Array | -4/Zhirov | Free Imp. Arc Thrower | -4/Zhirov | Free Cmb. Antigrav System | -3/Testing | Scanalyzed Robot Schematics ------------------ B-48 Gladiator | -7/Data Miner | Free M-22 Extractor | -7/Data Miner | Free E-15 Imp | -7/Data Miner | Free A-15 Conveyor | -7/Data Miner | Free L-41 Fighter | -7/Data Miner | Free R-10 Processor | -7/Data Miner | Free S-27 Virus | -7/Data Miner | Free Fabricated ------------ Nuclear Pulse Array | x1 | -6/Factory Imp. Antigrav System | x2 | -4/Factory Cmb. Antigrav System | x2 | -3/Testing Repaired ---------- Nothing Studied --------- Antigrav Array | -3/Testing | Hacked Alien Tech Used ----------------- Integrated Dissipator Transdimensional Reconstructor Achievements -------------- Deductive Reasoning Follow The Leader I Have A Map? Item+ Thread The Needle Around The Corner We Love MA Challenges ------------ None Game ------ Seed BackupCannonCyclogen Manual? 0 Play Time 03:58:54 Cumulative 292.2 hours Start 2026.01.11 @ 12:08:48 End 2026.01.12 @ 12:14:06 Sessions 9 Manual Loads 0 Difficulty Rogue Special Mode None Game No. 189 Rogue 189 Adventurer 0 Explorer 0 Win Type - Total 5 Types 4/0/0/1/0/0/0/0/0/0 Lore% 41 Gallery% 61 Achievement% 40 Wizard Run 0 Options --------- Layout 2 ASCII 0 Keyboard 1 Movement Numpad Keybinds 0 Fullscreen 1 Font 32/SmallcapsGlow Map View 50x44 Zoom Use 0% Tactical HUD 1 Map Filters NONE Filters NONE Steam 1 RUN: d5d39506-50f3-4d53-a0c8-43a5e73e8a89